Cogmind - Beta 10.2 @@@ ROGUE MODE // 2021.10.19 @ 03:10:10 Player: Kom Result: Destroyed by G-34 Mercenary with Small Laser Performance ------------- Evolutions (1) 500 Regions Visited (4) 800 Robots Destroyed (30) 150 Value Destroyed (857) 857 Prototype IDs (4) 80 Alien Tech Used (0) 0 Bonus (211) 211 TOTAL SCORE: 2598 Bonus ------- Pacifist 200 High Alert Combat Kills 11 Cogmind --------- Core Integrity 0/400 Matter 300/300 Energy 280/280 System Corruption 8% Temperature Cool (378) Movement Treading (200) Ox2 Location -9/Storage Parts ------- > --- POWER (1) -------- Heavy Ion Engine > --- PROPULSION (3) --- Light Treads > --- UTILITY (3) ------ High-capacity Storage Unit > --- WEAPON (2) ------- Advanced Beam Cannon > --- INVENTORY (12) --- Improved Ion Engine Heavy Ion Engine VTOL Module VTOL Module Armor Integrity Analyzer Peak State ------------ > --- POWER ------------ Ion Engine > --- PROPULSION ------- Aluminum Leg Aluminum Leg Aluminum Leg > --- UTILITY ---------- High-capacity Storage Unit Armor Integrity Analyzer Light Armor Plating > --- WEAPON ----------- Makeshift Shrapnel Gun Mini Grenade Launcher > --- INVENTORY -------- Improved Ion Engine Heavy Ion Engine Light Treads Light Treads Aluminum Leg VTOL Module VTOL Module Armor Integrity Analyzer Tractor Beam [Rating: 15] Favorites ----------- Power Ion Engine Engine Ion Engine Propulsion Aluminum Leg Treads Light Treads Leg Aluminum Leg Utility High-capacity Storage Unit Device ECM Suite Storage High-capacity Storage Unit Processor Armor Integrity Analyzer Protection Light Armor Plating Weapon Small Laser Energy Gun Small Laser Energy Cannon Advanced Beam Cannon Ballistic Gun Light Assault Rifle Launcher Mini Grenade Launcher Build | -11 -10 -10 -9 -9 ------- Run | Scr Mat Min Mat Sto Slots Evolved 2 | . . . 2 . Power . | . . . . . Propulsion 1 | . . . 1 . Utility 1 | . . . 1 . Weapon . | . . . . . Parts Attached 37 | 6 1 1 17 12 Power 6 | 1 . . 2 3 Engine 6 | 1 . . 2 3 Core . | . . . . . Reactor . | . . . . . Propulsion 11 | 2 . . 5 4 Treads 3 | . . . . 3 Leg 8 | 2 . . 5 1 Wheel . | . . . . . Hover . | . . . . . Flight . | . . . . . Utility 9 | 1 1 . 5 2 Device 2 | . 1 . . 1 Storage 2 | 1 . . 1 . Processor 1 | . . . 1 . Hackware . | . . . . . Protection 4 | . . . 3 1 Artifact . | . . . . . Weapon 11 | 2 . 1 5 3 Energy Gun 2 | 1 . . 1 . Energy Cannon 3 | . . . 1 2 Ballistic Gun 5 | 1 . 1 2 1 Ballistic Cannon . | . . . . . Launcher 1 | . . . 1 . Special Weapon . | . . . . . Impact Weapon . | . . . . . Slashing Weapon . | . . . . . Piercing Weapon . | . . . . . Special Melee Weapon . | . . . . . Unidentified Prototypes 2 | . . . . 2 Parts Lost 21 | . . . 6 15 Power 3 | . . . . 3 Propulsion 6 | . . . 1 5 Utility 6 | . . . 2 4 Weapon 6 | . . . 3 3 Highest Loss Streak 5 | . . . 4 5 Average Slot Usage (%) 88 | . 95 100 87 72 Engine 11 | . 14 14 10 7 Treads 1 | . . . . 4 Leg 26 | . 28 28 26 24 Device 7 | . 10 14 4 1 Storage 12 | . 14 14 11 11 Processor 4 | . . . 10 5 Protection 2 | . . . 3 4 Energy Gun 7 | . 14 14 4 . Energy Cannon 2 | . . . 1 6 Ballistic Gun 9 | . 14 14 12 . Launcher 2 | . . . . 7 Naked Turns . | . . . . . Heaviest Build 48 | 11 12 13 44 48 Greatest Support 40 | 20 20 20 30 40 Greatest Overweight (x) 10 | 3 . . 2 10 Average Overweight (x) . | . . . 1 1 Largest Inventory Capacity 14 | 6 6 6 14 12 Average Capacity 9 | 5 6 6 11 12 Most Carried 12 | 6 6 6 12 12 Average Carried 7 | 3 4 5 9 9 Final Capacity 12 | 6 6 6 12 12 Final Carried 10 | 4 6 6 10 5 Class Distribution -------------------- 88% | Mutant 11% | Scavenger-Mutant Dominant Class ---------------- Mutant | -10/Materials Mutant | -10/Mines Mutant | -9/Materials Mutant | -9/Storage Resources | -11 -10 -10 -9 -9 ----------- Run | Scr Mat Min Mat Sto Matter Collected 726 | 243 . 37 252 194 Remotely 105 | . . . . 105 Salvage Created 923 | . . . 458 465 Parts 69 | . . . 34 35 Haulers Intercepted 1 | . . . . 1 Recyclers Shooed . | . . . . . Parts Field Recycled . | . . . . . Retrieved Matter . | . . . . . Parts Self-Destructed . | . . . . . Prevented . | . . . . . Kills | -11 -10 -10 -9 -9 ------- Run | Scr Mat Min Mat Sto Combat Hostiles Destroyed 24 | . . . 12 12 Melee 1 | . . . . 1 Guns 10 | . . . 9 1 Cannons 9 | . . . 1 8 AOE 4 | . . . 2 2 Classes Destroyed 7 | . . . 4 3 Worker 4 | . . . . 4 Builder 1 | . . . 1 . Hauler 1 | . . . . 1 Swarmer 3 | . . . . 3 Grunt 14 | . . . 8 6 Brawler 2 | . . . 2 . Sentry 5 | . . . 2 3 Best Kill Streak 5 | . . . 4 5 Combat Bots Only 5 | . . . 4 5 Max Kills in Single Turn 3 | . . . 2 3 Gunslinging . | . . . . . Exploded 2 | . . . 2 1 Melee 1 | . . . . 1 Uniques/NPCs Destroyed . | . . . . . Combat | -11 -10 -10 -9 -9 -------- Run | Scr Mat Min Mat Sto Damage Taken 2595 | . . 43 872 1680 Core 407 | . . . 93 314 Absorbed by Shields . | . . . . . Core Remaining (%) 100 | 100 . 100 . . Volleys Fired 68 | . . . 30 38 Largest 2 | . . . 2 2 Hottest 98 | . . . 90 98 Shots Fired 101 | . . . 59 42 Gun 56 | . . . 54 2 Cannon 36 | . . . 3 33 Launcher 9 | . . . 2 7 Special . | . . . . . Kinetic 43 | . . . 41 2 Thermal 49 | . . . 16 33 Explosive 9 | . . . 2 7 Electromagnetic . | . . . . . Robot Hit Streak 14 | . . . 14 7 Robot Miss Streak 4 | . . . 3 4 Penetration Max . | . . . . . Secondary Targets 2 | . . . 2 . Max Gunslinging Chain 1 | . . . 1 . Shots Hit Robots 77 | . . . 50 27 Core Hits 50 | . . . 27 23 Critical Hits 4 | . . . . 4 Critical Kills 1 | . . . . 1 Critical Parts Destroyed 3 | . . . . 3 Melee Attacks . | . . . . . Impact . | . . . . . Slashing . | . . . . . Piercing . | . . . . . Sneak Attacks . | . . . . . Combat Hostiles . | . . . . . Follow-up Attacks . | . . . . . Damage Inflicted 1948 | . . . 777 1171 Guns 470 | . . . 452 18 Cannons 561 | . . . 53 508 Explosions 889 | . . . 267 622 Melee . | . . . . . Ramming 28 | . . . 5 23 Kinetic 394 | . . . 376 18 Thermal 637 | . . . 129 508 Explosive 889 | . . . 267 622 Electromagnetic . | . . . . . Impact . | . . . . . Slashing . | . . . . . Piercing . | . . . . . Highest Corruption 8 | . . . . 8 Average Corruption 6 | . . . . 6 Corruption Purged . | . . . . . Effects 13 | . . . . 13 Message Errors 3 | . . . . 3 Matter Fused 3 | . . . . 3 Heat Flow Errors 2 | . . . . 2 Parts Rejected 1 | . . . . 1 Data Loss (minor) 1 | . . . . 1 Targeting Errors 3 | . . . . 3 Overload Shots . | . . . . . Overflow Damage 33 | . . . 22 11 Projectiles 5 | . . . . 5 Explosions 28 | . . . 22 6 Melee . | . . . . . Knockbacks . | . . . . . Impact . | . . . . . Kinetic . | . . . . . Secondary . | . . . . . Self-Inflicted Damage 107 | . . . 12 95 Shots 4 | . . . 2 2 Rammed 5 | . . . 1 4 Targets Rammed 7 | . . . 2 5 Kicked 2 | . . . 1 1 Crushed . | . . . . . Highest Temperature 393 | . . . 73 393 Average Temperature 70 | . . . 18 104 Received Heat Transfer 942 | . . . 396 546 Effects 2 | . . . . 2 Interference 2 | . . . . 2 Siege Activations . | . . . . . Robots Corrupted . | . . . . . Combat Hostiles . | . . . . . Parts Fried . | . . . . . Impact Corruptions . | . . . . . Robots Melted . | . . . . . Combat Hostiles . | . . . . . Parts Melted . | . . . . . Heat Transferred 1211 | . . . 286 925 Parts Sabotaged . | . . . . . Parts Stolen . | . . . . . Parts Stripped . | . . . . . Power Chain Reactions . | . . . . . Missiles Intercepted . | . . . . . Alert | -11 -10 -10 -9 -9 ------- Run | Scr Mat Min Mat Sto Peak Influence 423 | . 9 3 347 423 Initial 146 | . . 3 . 146 Average 116 | . 5 2 185 264 Maximum Alert Level 2 | . . . 1 2 Low Security (%) 62 | 100 100 100 41 11 Level 1 37 | . . . 58 86 Level 2 . | . . . . 1 Level 3 . | . . . . . Level 4 . | . . . . . Level 5 . | . . . . . High Security . | . . . . . Max Security . | . . . . . Squads Dispatched 4 | . . . 2 2 Investigation 1 | . . . . 1 Extermination . | . . . . . Reinforcement 3 | . . . 2 1 Assault . | . . . . . Garrison . | . . . . . Intercept . | . . . . . Construction Impeded . | . . . . . Haulers Reinforced . | . . . . . Stealth | -11 -10 -10 -9 -9 --------- Run | Scr Mat Min Mat Sto Distress Signals 1 | . . . . 1 Communications Jammed . | . . . . . Distress Signals . | . . . . . Times Spotted 36 | . . 2 16 18 Peak Tracking Total 8 | . . 2 6 8 Tactical Retreats 4 | . . 1 2 1 Traps | -11 -10 -10 -9 -9 ------- Run | Scr Mat Min Mat Sto Traps Triggered 1 | . . . . 1 Indirectly . | . . . . . Trap Hack Attempts . | . . . . . Triggered . | . . . . . Disarmed . | . . . . . Reprogrammed . | . . . . . Reused . | . . . . . Traps Extracted . | . . . . . Installed . | . . . . . Triggered . | . . . . . Machines | -11 -10 -10 -9 -9 ---------- Run | Scr Mat Min Mat Sto Machines Disabled 3 | . . . . 3 Max in Single Turn 1 | . . . . 1 Machines Sabotaged . | . . . . . Garrisons Compromised . | . . . . . Overloaded Fab Kills . | . . . . . Fab Network Shutdowns . | . . . . . Hacking | -11 -10 -10 -9 -9 --------- Run | Scr Mat Min Mat Sto Machines Accessed 8 | . 2 1 1 4 Terminals 6 | . 2 1 . 3 Fabricators . | . . . . . Repair Stations 1 | . . . 1 . Recycling Units 1 | . . . . 1 Scanalyzers . | . . . . . Garrison Access . | . . . . . Total Hacks 23 | . 6 1 4 12 Successful 20 | . 5 1 4 10 Failed 3 | . 1 . . 2 Catastrophic 1 | . . . . 1 Database Lockouts . | . . . . . Manual . | . . . . . Terminals 15 | . 6 1 . 8 Fabricators . | . . . . . Repair Stations 4 | . . . 4 . Recycling Units 4 | . . . . 4 Scanalyzers . | . . . . . Garrison Access . | . . . . . Terminal Hacks 13 | . 5 1 . 7 Record 9 | . 3 1 . 5 Prototype ID Bank 1 | . . . . 1 Dispatch Records 1 | . 1 . . . Transport Status 1 | . 1 . . . Recall Investigation 1 | . . . . 1 Fabricator Hacks . | . . . . . Repair Station Hacks 4 | . . . 4 . Scan Component 2 | . . . 2 . Repair 2 | . . . 2 . Recycling Unit Hacks 3 | . . . . 3 Retrieve Matter 3 | . . . . 3 Scanalyzer . | . . . . . Garrison Access Hacks . | . . . . . Unauthorized Hacks . | . . . . . Terminals . | . . . . . Fabricators . | . . . . . Repair Stations . | . . . . . Recycling Units . | . . . . . Scanalyzers . | . . . . . Garrison Access . | . . . . . Data Cores Recovered . | . . . . . Used . | . . . . . Hacking Detections 6 | . 2 . 1 3 Full Trace Events 2 | . 1 . . 1 Feedback Events . | . . . . . Feedback Blocked . | . . . . . Robot Schematics Acquired . | . . . . . Robots Built . | . . . . . Matter . | . . . . . Time . | . . . . . Total Robot Build Rating . | . . . . . Part Schematics Acquired . | . . . . . Parts Built . | . . . . . Matter . | . . . . . Time . | . . . . . Total Part Build Rating . | . . . . . Parts Repaired 2 | . . . 2 . Time 52 | . . . 52 . Parts Recycled . | . . . . . Recycled Matter . | . . . . . Retrieved Matter . | . . . . . Retrieved Components . | . . . . . Parts Scanalyzed . | . . . . . Part Schematics Acquired . | . . . . . Parts Damaged . | . . . . . Bothacking | -11 -10 -10 -9 -9 ------------ Run | Scr Mat Min Mat Sto Used RIF Installer . | . . . . . Robots Hacked . | . . . . . Non-combat . | . . . . . Combat . | . . . . . Robot Hacks Applied . | . . . . . Relay Couplers Released . | . . . . . Robots Rewired . | . . . . . Allies Hacked . | . . . . . Hacks Repelled . | . . . . . Allies | -11 -10 -10 -9 -9 -------- Run | Scr Mat Min Mat Sto Total Allies . | . . . . . Largest Group . | . . . . . Highest-Rated Group . | . . . . . Highest-Rated Ally . | . . . . . Total Orders . | . . . . . Ally Attacks . | . . . . . Total Damage . | . . . . . Kills . | . . . . . Allies Corrupted . | . . . . . Allies Melted . | . . . . . Intel | -11 -10 -10 -9 -9 ------- Run | Scr Mat Min Mat Sto Robot Analysis Total . | . . . . . Derelict Logs Recovered 1 | . . 1 . . Drone Launches . | . . . . . Drone Recoveries . | . . . . . Exploration | -11 -10 -10 -9 -9 ------------- Run | Scr Mat Min Mat Sto Turns Passed 1489 | 91 185 453 379 381 Spaces Moved 866 | 58 150 364 124 170 Core 29 | 28 . . . 1 Treads 23 | . . . . 23 Legs 814 | 30 150 364 124 146 Wheels . | . . . . . Hover . | . . . . . Flight . | . . . . . Fastest Speed 50 | 50 120 120 120 150 Average Speed 133 | 130 120 120 159 155 Slowest Speed 550 | 200 120 120 180 550 Overloaded Moves . | . . . . . Propulsion Burnouts . | . . . . . Robots Hopped . | . . . . . Cave-ins Triggered 1 | . . . . 1 Exploration Rate (%) 35 | 6 34 74 10 51 Regions Visited 4 Branch Regions 2 Pre-discovered Areas . | . . . . . Known Exits Taken . | . . . . . Unknown Exits Taken 4 | 1 1 1 1 . Scrap Searched 1 | . . 1 . . Spaces Dug . | . . . . . Terrain Destroyed 56 | . . . 12 44 Melee . | . . . . . Projectile . | . . . . . AOE 56 | . . . 12 44 Terrain Rammed . | . . . . . Walls Destroyed . | . . . . . Machines Disabled . | . . . . . Actions | -11 -10 -10 -9 -9 --------- Run | Scr Mat Min Mat Sto Total 1105 | 73 155 381 251 245 Wait 76 | . 2 13 55 6 Move 862 | 57 149 363 123 170 Hop . | . . . . . Pick Up 43 | 10 3 2 18 10 Fast Attach 1 | . . . 1 . Attach 35 | 6 1 1 15 12 Detach 1 | . . . 1 . Swap 1 | . . . 1 . Drop 11 | . . 2 5 4 Fire 68 | . . . 30 38 Melee . | . . . . . Ram . | . . . . . Kick 6 | . . . 2 4 Crush 1 | . . . . 1 Escape Stasis . | . . . . . Rewire . | . . . . . Trap . | . . . . . Miscellaneous . | . . . . . Route ------- -11/Scrapyard -10/Materials -10/Mines -9/Materials -9/Storage History --------- Turn | Location | Event 9 | -11/Scrapyard | Discovered new exit (range 15) 92 | -11/Scrapyard | Entered Materials 254 | -10/Materials | Discovered new exit (range 12) 277 | -10/Materials | Entered Mines 300 | -10/Mines | Build established: Mutant 391 | -10/Mines | A weapon hastily lodged in a ceiling crevice suddenly fell to the ground 660 | -10/Mines | Assembled infested the area 665 | -10/Mines | Assisted by a Guerilla fighting off Assembled 695 | -10/Mines | Learned Materials terminal intel 719 | -10/Mines | Discovered new exit (range 6) 730 | -10/Mines | Entered Materials 730 | -9/Materials | Evolved 2 slots: Propulsion x1, Utility x1 731 | -9/Materials | Loaded intel: 12 terminal locations 938 | -9/Materials | Repaired Lgt. Armor Plating 964 | -9/Materials | Repaired Aluminum Leg 1045 | -9/Materials | Discovered new exit (range 16) 1080 | -9/Materials | Lost 4 parts (1n1u2w) 1109 | -9/Materials | Entered Storage 1285 | -9/Storage | Crushed by falling debris 1316 | -9/Storage | Lost 4 parts (2p2u) 1380 | -9/Storage | Core integrity fell below 50% 1402 | -9/Storage | Core integrity fell below 20% 1428 | -9/Storage | Lost 5 parts (1p3n1w) 1490 | -9/Storage | Destroyed by G-34 Mercenary with Small Laser Last Messages --------------- 01464_ K-01 Serf collects debris. 01465_ Slammed into R-06 Scavenger. 01466_ K-01 Serf cleans the Component Storage. 01467_ G-34 Mercenary destroyed. 01469_ Y-45 Defender suffers critical hit. 01469_ Destroyed Beam Rifle. 01469_ K-01 Serf collects debris. 01471_ Y-45 Defender suffers critical hit. 01471_ Destroyed Lgt. Treads. 01473_ Tractor Beam destroyed. 01475_ System corrupted: Adv. Beam Cannon targeting data glitched. 01475_ Component Storage disabled. 01475_ K-01 Serf cleans the Repair Station. 01479_ Lgt. Treads destroyed. 01480_ K-01 Serf collects debris. 01483_ System corrupted: Adv. Beam Cannon targeting data glitched. 01487_ K-01 Serf collects debris. 01487_ Y-45 Defender destroyed. 01488_ Lgt. Armor Plating destroyed. 01489_ K-01 Serf cleans the Repair Station. Map ----- +----------------------------------------------------+ | ????????????# # #?# ??"" ##?????????? | | ???????????????????" + #?# ???" #??????????? | | ????????????#??????" # #?? ???" #??????????? | | ????????????# ?????" # #??????? #??????????? | | ????????????# """""" # #??????? !#??????????? | | ????????????# # #??????? #???????????? | | ????????????###+####### #############????????? | | ??????????????# #???### # # = ! !#????????? | | ??????????????# ##### *# # % #????????? | | ??????######### ## # = ## #????????? | | ??????# * [ #????????? | | ??????# ] * #????????? | | ??????# #????????? | | ??????############# #????????? | | ??????????????????## #????????? | | ???????????????????#### ########???????????? | | ??????????????????????#### #?????????#????????? | | ?????????????????????????# #???????# ###??????? | | ?????????????############# ####### #??????? | | ??????????? #??????? | | ??????????? ^ + ???? | | ??????????? #??????? | | ?????????????###############+##### #??????? | | ???????????????????????#*[= #?? ##??????? | | ???????????????????????#=[r % #????????????? | | ?????????????????????###g@"" !#????????????? | | ?????????????????????#""=!""k"" #????????????? | | ?????????????????????#"Y%""" """ #????????????? | | ?????????????????????#""%""" R" ##???????????? | | ?????????????????????###g""" """ #???????????? | | ???????????????????????#==[! ##???????????? | | ???????????????????????###########????????????? | | ??????????????????????????????????????????????? | | ??????????????????????????????????????????????? | | ??????????????????????????????????????????????? | | ??????????????????????????????????????????????? | | ??????????????????????????????????????????????? | | ??????????????????????????????????????????????? | | ??????????????????????????????????????????????? | | ??????????????????????????????????????????????? | | ??????????????????????????????????????????????? | | ??????????????????????????????????????????????? | | ??????????????????????????????????????????????? | | ??????????????????????????????????????????????? | | ??????????????????????????????????????????????? | | ??????????????????????????????????????????????? | | ??????????????????????????????????????????????? | | ??????????????????????????????????????????????? | | ??????????????????????????????????????????????? | | ??????????????????????????????????????????????? | +----------------------------------------------------+ Best States ------------- Heat Dissipation 28 Energy Generation 14 Energy Capacity 280 Matter Stores 300 Matter Capacity 300 Sight Range 16 Terrain Scan Density 10 ECM Strength 1 Armor Coverage 150 Evasion (%) 40 Armor Integrity Analysis 33 Recoil Reduction 2 Item Schematics ----------------- None Robot Schematics ------------------ None Fabricated ------------ Nothing Alien Tech Used ----------------- None Achievements -------------- I Survived The Infestation Loot Pinata Unlikely Earthworm Use The Force Challenges ------------ None Game ------ Seed MagneticShockMatter Manual? 0 Play Time 00:17:49 Cumulative 8.6 hours Start 2021.10.19 @ 02:52:45 End 2021.10.19 @ 03:10:10 Sessions 1 Manual Loads 0 Difficulty Rogue Special Mode None Game No. 17 Rogue 17 Adventurer 0 Explorer 0 Win Type - Total 0 Types 0/0/0/0/0/0/0/0/0 Lore% 7 Gallery% 16 Achievement% 6 Wizard Run 0 Options --------- ASCII 0 Keyboard 0 Movement Numpad Keybinds 0 Fullscreen 1 Font 24/Smallcaps Map View 76x50 Tactical HUD 1 Map Filters NONE Filters NONE Steam 1 RUN: 787ed50a-b4a3-4ebd-97d2-c951fd073ea5